Cogmind - Beta 9.6 @@@ ROGUE MODE // 2020.07.14 @ 23:44:34 Player: GGOBC-006 Result: Destroyed self with Mini Grenade Launcher Performance ------------- Evolutions (1) 500 Regions Visited (2) 400 Robots Destroyed (34) 170 Value Destroyed (637) 637 Prototype IDs (0) 0 Alien Tech Used (0) 0 Bonus (0) 0 TOTAL SCORE: 1707 Bonus ------- None Cogmind --------- Core Integrity 0/400 Matter 190/300 Energy 125/125 System Corruption 11% Temperature Cool (0) Movement Flying (120) Ox1 Location -9/Materials Parts ------- > --- POWER (1) -------- Light Ion Engine > --- PROPULSION (2) --- Flight Unit > --- UTILITY (4) ------ (None) > --- WEAPON (2) ------- Mini Grenade Launcher Mining Laser > --- INVENTORY (4) ---- Improved Ion Engine Wheel Compact Wheel Mining Laser Peak State ------------ > --- POWER ------------ Light Ion Engine > --- PROPULSION ------- Flight Unit Flight Unit > --- UTILITY ---------- Disposable Heat Sink Sensor Array Signal Interpreter > --- WEAPON ----------- Mini Grenade Launcher > --- INVENTORY -------- Improved Ion Engine Wheel Compact Wheel Mining Laser [Rating: 9] Favorites ----------- Power Light Ion Engine Engine Light Ion Engine Propulsion Flight Unit Wheel Wheel Flight Unit Flight Unit Utility Signal Interpreter Device Sensor Array Storage Small Storage Unit Processor Signal Interpreter Weapon EM Pulse Gun Energy Gun EM Pulse Gun Energy Cannon Particle Cannon Ballistic Gun Assault Rifle Launcher Mini Grenade Launcher Special Weapon Mining Laser Build | -11 -10 -9 ------- Run | Scr Mat Mat Slots Evolved 2 | . . 2 Power . | . . . Propulsion . | . . . Utility 2 | . . 2 Weapon . | . . . Parts Attached 39 | 8 17 14 Power 10 | 1 5 4 Engine 10 | 1 5 4 Core . | . . . Reactor . | . . . Propulsion 10 | 3 6 1 Treads . | . . . Leg . | . . . Wheel 5 | 3 2 . Hover . | . . . Flight 5 | . 4 1 Utility 5 | 2 2 1 Device 3 | 1 1 1 Storage 1 | 1 . . Processor 1 | . 1 . Hackware . | . . . Protection . | . . . Artifact . | . . . Weapon 14 | 2 4 8 Energy Gun 3 | 1 2 . Energy Cannon 2 | . . 2 Ballistic Gun 3 | 1 2 . Ballistic Cannon . | . . . Launcher 2 | . . 2 Special Weapon 4 | . . 4 Impact Weapon . | . . . Slashing Weapon . | . . . Piercing Weapon . | . . . Special Melee Weapon . | . . . Unidentified Prototypes . | . . . Parts Lost 8 | . 2 6 Power 3 | . 1 2 Propulsion 1 | . . 1 Utility 2 | . . 2 Weapon 2 | . 1 1 Highest Loss Streak 3 | . 2 3 Average Slot Usage (%) 60 | . 81 50 Engine 11 | . 13 10 Wheel 3 | . 12 . Flight 15 | . 15 14 Device 8 | . 8 8 Storage 2 | . 6 . Processor 5 | . 1 6 Energy Gun 4 | . 14 . Energy Cannon 2 | . . 3 Ballistic Gun 2 | . 7 . Launcher 3 | . . 5 Special Weapon 1 | . . 1 Naked Turns 5 | . . 5 Heaviest Build 16 | 14 16 12 Greatest Support 26 | 26 20 8 Greatest Overweight (x) 3 | . 3 2 Average Overweight (x) . | . . . Largest Inventory Capacity 6 | 6 6 4 Average Capacity 4 | 5 4 4 Most Carried 5 | 3 5 4 Average Carried 3 | 1 4 3 Final Capacity 6 | 6 4 4 Final Carried 4 | 3 4 4 Class Distribution -------------------- 57% | Mutant 42% | Scavenger-Mutant Dominant Class ---------------- Mutant | -10/Materials Scavenger-Mutant | -9/Materials Resources | -11 -10 -9 ----------- Run | Scr Mat Mat Matter Collected 714 | 307 171 236 Remotely 219 | 111 108 . Salvage Created 1070 | 189 614 267 Parts 80 | 13 43 24 Haulers Intercepted . | . . . Recyclers Shooed 4 | . 3 1 Parts Field Recycled . | . . . Retrieved Matter . | . . . Parts Self-Destructed . | . . . Prevented . | . . . Kills | -11 -10 -9 ------- Run | Scr Mat Mat Combat Hostiles Destroyed 17 | . 9 8 Melee 4 | . . 4 Guns 8 | . 8 . Cannons 3 | . . 3 AOE 2 | . 1 1 Classes Destroyed 9 | 2 4 3 Worker 2 | . 1 1 Builder 1 | . . 1 Tunneler 5 | 5 . . Recycler 5 | 1 4 . Operator 1 | . . 1 Watcher 3 | . 3 . Swarmer 8 | . 5 3 Grunt 7 | . 4 3 Sentry 2 | . . 2 Best Kill Streak 10 | 5 10 4 Combat Bots Only 3 | . 3 3 Max Kills in Single Turn 1 | 1 1 1 Gunslinging . | . . . Exploded 1 | . 1 1 Melee 1 | . . 1 Uniques/NPCs Destroyed . | . . . Combat | -11 -10 -9 -------- Run | Scr Mat Mat Damage Taken 877 | . 199 678 Core 431 | . 31 400 Absorbed by Shields . | . . . Core Remaining (%) 93 | 100 87 . Volleys Fired 106 | 9 36 61 Largest 2 | 2 2 2 Hottest 168 | 60 80 168 Shots Fired 140 | 18 58 64 Gun 76 | 18 58 . Cannon 30 | . . 30 Launcher 30 | . . 30 Special 4 | . . 4 Kinetic 25 | 9 16 . Thermal 34 | . . 34 Explosive 30 | . . 30 Electromagnetic 51 | 9 42 . Robot Hit Streak 11 | 5 11 8 Robot Miss Streak 8 | 2 2 8 Penetration Max . | . . . Secondary Targets 1 | . 1 . Max Gunslinging Chain 1 | . 1 . Shots Hit Robots 66 | 11 33 22 Core Hits 53 | 6 20 27 Critical Hits 1 | . . 1 Critical Kills . | . . . Critical Parts Destroyed 1 | . . 1 Melee Attacks . | . . . Impact . | . . . Slashing . | . . . Piercing . | . . . Sneak Attacks . | . . . Combat Hostiles . | . . . Follow-up Attacks . | . . . Damage Inflicted 1529 | 142 587 800 Guns 644 | 142 502 . Cannons 308 | . . 308 Explosions 446 | . 85 361 Melee . | . . . Ramming 83 | . . 83 Kinetic 125 | 49 76 . Thermal 441 | . 85 356 Explosive 361 | . . 361 Electromagnetic 519 | 93 426 . Impact . | . . . Slashing . | . . . Piercing . | . . . Highest Corruption 11 | . . 11 Average Corruption 7 | . . 7 Corruption Purged . | . . . Effects 7 | . . 7 Message Errors 3 | . . 3 Heat Flow Errors 1 | . . 1 Energy Discharges 1 | . . 1 Data Loss (minor) 1 | . . 1 Targeting Errors 1 | . . 1 Overload Shots . | . . . Overflow Damage 57 | . 23 34 Projectiles 1 | . . 1 Explosions 56 | . 23 33 Melee . | . . . Knockbacks . | . . . Impact . | . . . Kinetic . | . . . Secondary . | . . . Self-Inflicted Damage 152 | . 56 96 Shots 5 | . 1 4 Rammed 32 | . . 32 Targets Rammed 32 | . . 32 Kicked . | . . . Crushed . | . . . Highest Temperature 290 | . 165 290 Average Temperature 63 | . 30 94 Received Heat Transfer 225 | . 33 192 Effects 1 | . . 1 Interference 1 | . . 1 Siege Activations . | . . . Robots Corrupted . | . . . Combat Hostiles . | . . . Parts Fried 2 | . 2 . Impact Corruptions . | . . . Robots Melted . | . . . Combat Hostiles . | . . . Parts Melted . | . . . Heat Transferred 705 | . 50 655 Parts Sabotaged . | . . . Parts Stolen . | . . . Parts Stripped . | . . . Power Chain Reactions 2 | . 2 . Missiles Intercepted . | . . . Alert | -11 -10 -9 ------- Run | Scr Mat Mat Peak Influence 308 | 30 308 275 Average Influence 157 | 9 164 173 Maximum Alert Level 1 | . 1 1 Low Security (%) 75 | 100 54 82 Level 1 24 | . 45 17 Level 2 . | . . . Level 3 . | . . . Level 4 . | . . . Level 5 . | . . . High Security . | . . . Max Security . | . . . Squads Dispatched 2 | . . 2 Investigation 1 | . . 1 Extermination . | . . . Reinforcement 1 | . . 1 Assault . | . . . Garrison . | . . . Intercept . | . . . Construction Impeded . | . . . Haulers Reinforced . | . . . Stealth | -11 -10 -9 --------- Run | Scr Mat Mat Distress Signals 2 | . 1 1 Communications Jammed . | . . . Distress Signals . | . . . Times Spotted 29 | . 15 14 Peak Tracking Total 6 | . 6 3 Tactical Retreats 4 | . 2 2 Traps | -11 -10 -9 ------- Run | Scr Mat Mat Traps Triggered . | . . . Indirectly . | . . . Trap Hack Attempts . | . . . Triggered . | . . . Disarmed . | . . . Reprogrammed . | . . . Reused . | . . . Traps Extracted . | . . . Installed . | . . . Triggered . | . . . Machines | -11 -10 -9 ---------- Run | Scr Mat Mat Machines Disabled 8 | . 3 5 Max in Single Turn 2 | . 1 2 Machines Sabotaged . | . . . Garrisons Compromised . | . . . Overloaded Fab Kills . | . . . Fab Network Shutdowns . | . . . Hacking | -11 -10 -9 --------- Run | Scr Mat Mat Machines Accessed 5 | . 2 3 Terminals 3 | . 2 1 Fabricators . | . . . Repair Stations 1 | . . 1 Recycling Units 1 | . . 1 Scanalyzers . | . . . Garrison Access . | . . . Total Hacks 13 | . 7 6 Successful 5 | . 1 4 Failed 8 | . 6 2 Catastrophic 1 | . 1 . Database Lockouts . | . . . Manual 4 | . 3 1 Terminals 8 | . 7 1 Fabricators . | . . . Repair Stations 3 | . . 3 Recycling Units 2 | . . 2 Scanalyzers . | . . . Garrison Access . | . . . Terminal Hacks . | . . . Fabricator Hacks . | . . . Repair Station Hacks 2 | . . 2 Scan Component 1 | . . 1 Repair 1 | . . 1 Recycling Unit Hacks 1 | . . 1 Retrieve Components 1 | . . 1 Scanalyzer . | . . . Garrison Access Hacks . | . . . Unauthorized Hacks 2 | . 1 1 Terminals 2 | . 1 1 Track 1 | . . 1 Detonate 1 | . 1 . Fabricators . | . . . Repair Stations . | . . . Recycling Units . | . . . Scanalyzers . | . . . Garrison Access . | . . . Data Cores Recovered . | . . . Used . | . . . Hacking Detections 4 | . 2 2 Full Trace Events 2 | . 1 1 Feedback Events . | . . . Feedback Blocked . | . . . Robot Schematics Acquired . | . . . Robots Built . | . . . Matter . | . . . Time . | . . . Total Robot Build Rating . | . . . Part Schematics Acquired . | . . . Parts Built . | . . . Matter . | . . . Time . | . . . Total Part Build Rating . | . . . Parts Repaired 1 | . . 1 Time 32 | . . 32 Parts Recycled . | . . . Recycled Matter . | . . . Retrieved Matter . | . . . Retrieved Components 3 | . . 3 Parts Scanalyzed . | . . . Part Schematics Acquired . | . . . Parts Damaged . | . . . Bothacking | -11 -10 -9 ------------ Run | Scr Mat Mat Used RIF Installer . | . . . Robots Hacked . | . . . Non-combat . | . . . Combat . | . . . Robot Hacks Applied . | . . . Relay Couplers Released . | . . . Robots Rewired . | . . . Allies Hacked . | . . . Hacks Repelled . | . . . Allies | -11 -10 -9 -------- Run | Scr Mat Mat Total Allies . | . . . Largest Group . | . . . Highest-Rated Group . | . . . Highest-Rated Ally . | . . . Total Orders . | . . . Ally Attacks . | . . . Total Damage . | . . . Kills . | . . . Allies Corrupted . | . . . Allies Melted . | . . . Intel | -11 -10 -9 ------- Run | Scr Mat Mat Robot Analysis Total . | . . . Derelict Logs Recovered . | . . . Drone Launches . | . . . Drone Recoveries . | . . . Exploration | -11 -10 -9 ------------- Run | Scr Mat Mat Turns Passed 1089 | 86 316 687 Spaces Moved 726 | 51 202 473 Core 56 | 3 . 53 Treads . | . . . Legs . | . . . Wheels 126 | 48 78 . Hover . | . . . Flight 544 | . 124 420 Fastest Speed 37 | 50 37 37 Average Speed 57 | 88 60 53 Slowest Speed 280 | 100 280 150 Overloaded Moves . | . . . Propulsion Burnouts . | . . . Robots Hopped 4 | . . 4 Cave-ins Triggered . | . . . Exploration Rate (%) 20 | 3 35 22 Regions Visited 2 Branch Regions . Pre-discovered Areas . | . . . Known Exits Taken 1 | . 1 . Unknown Exits Taken 1 | 1 . . Scrap Searched . | . . . Spaces Dug 56 | . . 56 Terrain Destroyed 287 | . 11 276 Melee . | . . . Projectile 2 | . . 2 AOE 285 | . 11 274 Actions | -11 -10 -9 --------- Run | Scr Mat Mat Total 1242 | 69 341 832 Wait 318 | . 71 247 Move 716 | 50 201 465 Hop 4 | . . 4 Pick Up 3 | 2 1 . Fast Attach 26 | 7 9 10 Attach 4 | . 1 3 Detach 3 | . . 3 Swap 9 | 1 7 1 Drop 21 | . 15 6 Fire 106 | 9 36 61 Melee . | . . . Ram 32 | . . 32 Kick . | . . . Crush . | . . . Escape Stasis . | . . . Rewire . | . . . Trap . | . . . Miscellaneous . | . . . Route ------- -11/Scrapyard -10/Materials -9/Materials (discovered 1 exit: [*Min]) History --------- Turn | Location | Event 21 | -11/Scrapyard | Discovered new exit (range 15) 87 | -11/Scrapyard | Entered Materials 311 | -10/Materials | Build established: Mutant 402 | -10/Materials | Discovered new exit (range 3) 403 | -10/Materials | Identified exit to Materials 403 | -10/Materials | Entered another Materials area 403 | -9/Materials | Evolved 2 slots: Utility x2 659 | -9/Materials | Build established: Scavenger-Mutant 787 | -9/Materials | Repaired Mni. Grenade Launcher 843 | -9/Materials | Core integrity fell below 50% 859 | -9/Materials | Lost 3 parts (1p1n1u) 950 | -9/Materials | Core integrity fell below 20% 964 | -9/Materials | System corruption reached 10% 1027 | -9/Materials | Discovered new exit (range 6) 1090 | -9/Materials | Destroyed self with Mini Grenade Launcher Last Messages --------------- Acquired Lgt. Ion Engine. Acquired 10 matter. Acquired Flight Unit. R-06 Scavenger collects Flight Unit. Acquired Mni. Grenade Launcher. 8I1XV4RH2 LT:H7KB5ZNA Repair Station disabled. The unstable cave ceiling collapses. H5 AMLMC|NV >GQMRZRCOAK4 1BCP6 D/SS,SH The unstable cave ceiling collapses. EXIT=FOUND Acquired Mining Laser. The unstable cave ceiling collapses. U-05 Engineer lays Concrete. U-05 Engineer builds a Wall. U-05 Engineer lays Concrete. U-05 Engineer builds a Wall. System corrupted: Component data lost. K-01 Serf collects debris. K-01 Serf destroyed. Map ----- +----------------------------------------------------+ | ?????????# "Y" # """ """ #? #??????????? | | ??#####??# / # """ """ ## #??????????? | | ?##"""##?# # """ """ ## #??????????? | | ##"|| "### ![# ## #??????????? | | #"" ""## *######+######## #??????????? | | # ## ] # # #??????????? | | # < ## " ## + #??????????? | | # ## "" ## ###+##### # / #??????????? | | # ## ## ?# # # #??########? | | ## ### ## ## # ############# ! #? | | ### #######+## # #+######### # #? | | # # """# ]!! # # """ #? | | + + """# [!! # # """ #? | | # #######+## # """# !! + + """ #? | | # #????? ??# ## # # # #? | | # #???? ???# ## """########### ########? | | # #? """ ## ## """# # #???????? | | # #? """ ## ## """# # #???????? | | ### #? " " # ^ + # # #???????? | | # # #? # ## # # #???????? | | # ########### ###+##### ! + +???????? | | # ## # % + ### ##### * [ # #???????? | | # # #### %% # r + = # #???????? | | + % % / #### # #???????? | | #### #### # ############# #???????? | | " ## # ## = @ #?????????# #???????? | | " # ## # ## !*] #?????????# #???????? | | " + ############ ]] #?????????# +???????? | | # ## ]] ###???????? ????????? | | ### ## T # ##??????????????????? | | ?# # ## #??????????????????? | | ## # # # #?????????????????? | | ## + """ " # #?????????????????? | | ## # """"" # # #### # ##?????????????????? | | ## # """"" ## # ### #?????????????????? | | ######## ##### ## ##?????????????????? | | # # #############???## #??????????????????? | | ## # # #????????????## # ##??????????????????? | | ## # ## ##?????????????#######???????????????????? | | # # ????????????????????????????????????????? | | # ####???????????????????????????????????????? | | # ????????????????????????????????????????? | | # #????????????????????????????????????????? | | # # ????????????????????????????????????????? | | # ?#????????????????????????????????????????? | | ## ## #?????????????????????????????????????????? | | ?###??##?????????????????????????????????????????? | | ?????????????????????????????????????????????????? | | ?????????????????????????????????????????????????? | | ?????????????????????????????????????????????????? | +----------------------------------------------------+ Best States ------------- Heat Dissipation 28 Coolant Potential 50 Energy Generation 12 Energy Capacity 265 Matter Stores 300 Matter Capacity 300 Sight Range 16 Robot Scan Range 10 Terrain Scan Density 10 Evasion (%) 62 Item Schematics ----------------- None Robot Schematics ------------------ None Fabricated ------------ Nothing Alien Tech Used ----------------- None Achievements -------------- None Challenges ------------ None Game ------ Seed TacticalLongswordChronowheel Manual? 0 Play Time 00:12:25 Cumulative 39.3 hours Start 2020.07.14 @ 22:26:15 End 2020.07.14 @ 23:44:34 Sessions 1 Manual Loads 0 Difficulty Rogue Special Mode None Game No. 36 Rogue 36 Adventurer 0 Explorer 0 Win Type - Total 0 Types 0/0/0/0/0/0/0 Lore% 43 Gallery% 38 Achievement% 33 Wizard Run 0 Options --------- ASCII 0 Keyboard 0 Movement Numpad Keybinds 0 Fullscreen 2 Font 18/TerminusBold Map View 76x50 Tactical HUD 0 Map Filters NONE Filters NONE Steam 1 RUN: 057b5c71-0daf-403e-ac80-359adfd66cc5